Cogmind - Beta 13 @@@ ROGUE MODE // 2024.05.05 @ 17:15:28 Player: dwarfinator Result: Escaped! Performance ------------- Evolutions (9) 4500 Regions Visited (19) 3800 Robots Destroyed (60) 300 Value Destroyed (816) 816 Prototype IDs (3) 60 Alien Tech Used (5) 1000 Bonus (4928) 4928 TOTAL SCORE: 15404 Bonus ------- High Alert Combat Kills 8 Follower Combat Kills 7 Entered DSFs 1000 Win 3000 Win Speed 913 Cogmind --------- Core Integrity 1511/1600 Matter 275/300 Energy 198/200 System Corruption 13% Temperature Cool (5) Movement Flying (23) Location To Epsilon Eridani Parts ------- > --- POWER (2) -------- Micro Nuclear Core Micro Antimatter Reactor > --- PROPULSION (8) --- Surge Thruster Improved Surge Thruster Improved Surge Thruster Improved Surge Thruster Field Propulsion Array Diametric Drive Improved Q-thruster > --- UTILITY (12) ----- Small Storage Unit Structural Scanner Enhanced Optical Array Long-range Sensor Array Advanced Signal Interpreter Advanced Target Analyzer ECM Suite Advanced Reaction Control System Hacking Suite Hacking Suite Hacking Suite Hacking Suite > --- WEAPON (3) ------- (None) > --- INVENTORY (8) ---- Micro Antimatter Reactor Q-thruster Improved Diametric Drive Improved Q-thruster Terrabomb Gamma Rifle Enhanced Nova Cannon Plasma Cutter Peak State ------------ > --- POWER ------------ Micro Nuclear Core Light Angular Momentum Engine > --- PROPULSION ------- Surge Thruster Improved Surge Thruster Improved Surge Thruster Improved Surge Thruster Field Propulsion Array Diametric Drive Improved Q-thruster > --- UTILITY ---------- Small Storage Unit Structural Scanner Enhanced Optical Array Long-range Sensor Array Terrain Scanner Seismic Detector Advanced Reaction Control System Improved Cloaking Device Improved Propulsion Shielding Hacking Suite Hacking Suite Hacking Suite > --- WEAPON ----------- Enhanced Nova Cannon Sigix Broadsword > --- INVENTORY -------- Surge Thruster Nuclear Pulse Thruster Q-thruster ECM Suite Terrabomb Plasma Cutter [Rating: 141] Favorites ----------- Power Light Ion Engine Engine Light Ion Engine Power Core Micro Nuclear Core Reactor Micro Antimatter Reactor Propulsion Surge Thruster Flight Unit Surge Thruster Utility Hacking Suite Device Seismic Detector Storage Small Storage Unit Processor Enhanced Optical Array Hackware Hacking Suite Protection Improved Propulsion Shielding Weapon Chainsword Energy Gun EM Pulse Gun Energy Cannon Phase Cannon Ballistic Gun Assault Rifle Launcher EMP Blaster Special Weapon Plasma Cutter Impact Weapon Flail Slashing Weapon Chainsword Special Melee Weapon Improved Datajack Build | -11 -10 -10 -9 -9 -9 -8 -8 -7 -7 -6 -6 -6 -5 -5 -4 -3 -2 -2 -1 ------- Run | Yrd Mat Min Mat Min Exi Min Mat Fac DSF Fac Was Fac Fac DSF Fac Res Res Qua Acc Slots Evolved 18 | . . . 2 . . . 2 2 . 2 . . 2 . 2 2 2 . 2 Power 1 | . . . . . . . . . . . . . . . . 1 . . . Propulsion 6 | . . . 1 . . . 1 1 . . . . 1 . . 1 1 . . Utility 10 | . . . 1 . . . 1 1 . 2 . . 1 . 2 . 1 . 1 Weapon 1 | . . . . . . . . . . . . . . . . . . . 1 Parts Attached 206 | 2 6 12 36 13 1 1 15 1 17 23 1 16 8 6 9 2 4 11 22 Power 20 | . 1 . 5 1 . . 1 . . 1 . 1 1 2 . 1 . 3 3 Engine 12 | . 1 . 5 1 . . 1 . . 1 . . 1 1 . . . 1 . Core 5 | . . . . . . . . . . . . 1 . 1 . 1 . 1 1 Reactor 3 | . . . . . . . . . . . . . . . . . . 1 2 Propulsion 33 | . 2 2 8 . . . 4 . 3 4 . . 1 . 2 1 1 2 3 Treads . | . . . . . . . . . . . . . . . . . . . . Leg . | . . . . . . . . . . . . . . . . . . . . Wheel . | . . . . . . . . . . . . . . . . . . . . Hover . | . . . . . . . . . . . . . . . . . . . . Flight 33 | . 2 2 8 . . . 4 . 3 4 . . 1 . 2 1 1 2 3 Utility 81 | . 2 4 7 6 1 1 7 1 5 14 . 9 4 2 6 . 1 3 8 Device 60 | . 2 3 2 6 1 1 6 . 2 11 . 8 3 2 5 . 1 2 5 Storage 2 | . . 1 1 . . . . . . . . . . . . . . . . Processor 6 | . . . 3 . . . . . 1 . . . . . . . . . 2 Hackware 10 | . . . . . . . 1 1 2 3 . 1 1 . . . . . 1 Protection 3 | . . . 1 . . . . . . . . . . . 1 . . 1 . Artifact . | . . . . . . . . . . . . . . . . . . . . Weapon 72 | 2 1 6 16 6 . . 3 . 9 4 1 6 2 2 1 . 2 3 8 Energy Gun 7 | 1 . . 3 . . . . . . 1 . . . . . . . . 2 Energy Cannon 13 | . . . . 2 . . 1 . . 1 1 2 . 1 . . . . 5 Ballistic Gun 11 | 1 1 4 5 . . . . . . . . . . . . . . . . Ballistic Cannon . | . . . . . . . . . . . . . . . . . . . . Launcher 8 | . . . . . . . 1 . 4 2 . 1 . . . . . . . Special Weapon 10 | . . 2 3 . . . . . 2 . . 2 1 . . . . . . Impact Weapon 12 | . . . 5 4 . . 1 . 1 . . . . . . . . 1 . Slashing Weapon 8 | . . . . . . . . . 2 . . 1 1 1 . . . 2 1 Piercing Weapon . | . . . . . . . . . . . . . . . . . . . . Special Melee Weapon 3 | . . . . . . . . . . . . . . . 1 . 2 . . Unidentified Prototypes 5 | . . . . . . . . . . . . . . . . . . 4 1 Parts Lost 27 | . . 3 11 . . . 2 . 3 3 . . . 1 . . . . 4 Power 4 | . . 1 2 . . . . . . 1 . . . . . . . . . Propulsion 12 | . . 2 5 . . . 1 . 3 1 . . . . . . . . . Utility 6 | . . . 2 . . . . . . . . . . 1 . . . . 3 Weapon 5 | . . . 2 . . . 1 . . 1 . . . . . . . . 1 Highest Loss Streak 8 | . . 3 8 . . . 2 . 3 3 . . . 1 . . . . 3 To Critical Strikes . | . . . . . . . . . . . . . . . . . . . . Average Slot Usage (%) 89 | . 53 59 84 100 100 100 99 80 87 93 100 99 98 100 99 95 91 90 87 Engine 5 | . 3 . 8 11 11 11 9 7 7 5 6 1 5 3 5 4 4 4 3 Core 1 | . . . . . . . . . . . . 4 . 1 . 4 4 4 2 Flight 29 | . 17 16 27 33 33 33 36 30 28 30 33 33 35 35 30 33 30 30 28 Device 13 | . 3 14 12 11 11 11 11 7 6 12 13 12 10 12 23 19 17 20 18 Storage 5 | . . 1 4 11 11 11 9 7 7 6 6 6 5 5 5 4 4 4 4 Processor 6 | . . . 9 11 11 11 9 7 7 6 6 6 5 5 5 4 4 4 9 Hackware 9 | . . . . . . . 6 11 15 19 20 20 22 21 15 14 13 13 12 Protection 1 | . . . . . . . . . . . . . . . 2 4 4 4 3 Energy Gun 1 | . 14 . . . . . . . . . . . . . . . . . . Energy Cannon 1 | . . . . . . . 8 . . . 6 5 3 . . . . . 1 Ballistic Gun 3 | . 14 16 13 . . . . . . . . . . . . . . . . Special Weapon 3 | . . 10 6 11 11 11 . . 3 . . 4 4 5 1 . . . . Impact Weapon 2 | . . . 1 10 11 11 8 7 3 . . . . . . . . . . Slashing Weapon 2 | . . . . . . . . . 3 6 6 2 1 5 5 4 4 4 1 Naked Turns . | . . . . . . . . . . . . . . . . . . . . Heaviest Build 46 | 4 8 8 12 14 12 12 17 11 15 21 22 22 25 26 27 32 35 46 45 Greatest Support 46 | 3 8 8 12 12 12 12 17 17 17 24 26 26 26 32 34 32 43 42 46 Greatest Overweight (x) 4 | 1 1 . . 1 . . . . 1 1 . . . 4 . . . 1 . Average Overweight (x) . | . . . . . . . . . . . . . . . . . . . . Largest Inventory Capacity 8 | 5 5 8 8 8 8 8 8 8 8 8 8 8 8 8 8 8 8 8 8 Average Capacity 7 | 5 5 5 6 8 8 8 8 8 8 8 8 8 8 8 8 8 8 8 8 Most Carried 8 | 4 5 8 8 8 8 8 8 7 8 8 8 8 8 8 8 8 8 8 8 Average Carried 7 | 2 4 4 5 8 8 7 7 6 7 7 7 7 7 7 7 7 7 7 7 Final Capacity 8 | 5 5 8 8 8 8 8 8 8 8 8 8 8 8 8 8 8 8 8 8 Final Carried 8 | 4 5 8 8 8 8 8 7 7 8 8 8 8 8 8 8 8 8 8 8 Class Distribution -------------------- 32% | Hacker-Sprinter 27% | Sprinter 15% | Mutant 8% | Hacker-Scout 5% | Hacker-Mutant Dominant Class ---------------- Mutant | -10/Materials Mutant | -10/Mines Sprinter | -9/Materials Sprinter | -9/Mines Sprinter | -9/Exiles Sprinter | -8/Mines Sprinter | -8/Materials Sprinter | -7/Factory Hacker-Sprinter | -7/DSF Hacker-Sprinter | -6/Factory Hacker-Sprinter | -6/Waste Hacker-Sprinter | -6/Factory Hacker-Sprinter | -5/Factory Hacker-Mutant | -5/DSF Hacker-Sprinter | -4/Factory Hacker-Sprinter | -3/Research Hacker-Sprinter | -2/Research Hacker-Sprinter | -2/Quarantine Hacker-Scout | -1/Access Resources | -11 -10 -10 -9 -9 -9 -8 -8 -7 -7 -6 -6 -6 -5 -5 -4 -3 -2 -2 -1 ----------- Run | Yrd Mat Min Mat Min Exi Min Mat Fac DSF Fac Was Fac Fac DSF Fac Res Res Qua Acc Matter Collected 2336 | 215 . 68 558 160 . 20 63 . 262 156 . 229 . . 193 12 . 43 357 Remotely . | . . . . . . . . . . . . . . . . . . . . Salvage Created 1712 | . . 60 295 248 . 90 152 . 43 117 . 21 . . 192 12 . 43 439 Parts 127 | . . 10 42 19 . 8 5 . . 10 . 2 . . 8 . . 4 19 Haulers Intercepted . | . . . . . . . . . . . . . . . . . . . . Recyclers Shooed 4 | . . . 1 . . . 2 . . . . . . . 1 . . . . Parts Field Recycled . | . . . . . . . . . . . . . . . . . . . . Retrieved Matter . | . . . . . . . . . . . . . . . . . . . . Parts Self-Destructed . | . . . . . . . . . . . . . . . . . . . . Prevented . | . . . . . . . . . . . . . . . . . . . . Kills | -11 -10 -10 -9 -9 -9 -8 -8 -7 -7 -6 -6 -6 -5 -5 -4 -3 -2 -2 -1 ------- Run | Yrd Mat Min Mat Min Exi Min Mat Fac DSF Fac Was Fac Fac DSF Fac Res Res Qua Acc Combat Hostiles Destroyed 24 | . . 4 12 3 . . 1 . . . . . . . . . . . 4 Melee 2 | . . . . . . . . . . . . . . . . . . . 2 Guns 15 | . . 4 11 . . . . . . . . . . . . . . . . Cannons 5 | . . . . 3 . . . . . . . . . . . . . . 2 AOE 2 | . . . 1 . . . 1 . . . . . . . . . . . . Classes Destroyed 9 | . . 3 5 . . . . . . . . . . . . . . . 1 Worker 18 | . . . 3 6 . . . . . 3 . 1 . . 2 1 . 1 1 Builder 3 | . . . 1 1 . . . . . . . . . . . . . 1 . Tunneler 7 | . . 1 . 1 . 4 . . . 1 . . . . . . . . . Recycler 6 | . . . 1 1 . . 2 . . . . . . . 1 . . . 1 Watcher 3 | . . . 1 . . . . . . 1 . . . . 1 . . . . Swarmer 18 | . . 3 11 3 . . 1 . . . . . . . . . . . . Sentry 1 | . . . 1 . . . . . . . . . . . . . . . . Programmer 4 | . . . . . . . . . . . . . . . . . . . 4 Assembled 1 | . . 1 . . . . . . . . . . . . . . . . . Best Kill Streak 6 | . . 3 6 4 . 2 3 . . 2 . 1 . . 2 1 . 2 2 Combat Bots Only 5 | . . 3 5 2 . . 1 . . . . . . . . . . . 2 Max Kills in Single Turn 1 | . . 1 1 1 . 1 1 . . 1 . 1 . . 1 1 . 1 1 Gunslinging . | . . . . . . . . . . . . . . . . . . . . Exploded 1 | . . . 1 . . . 1 . . . . . . . . . . . . Melee 1 | . . . . . . . . . . . . . . . . . . . 1 Uniques/NPCs Destroyed . | . . . . . . . . . . . . . . . . . . . . Combat | -11 -10 -10 -9 -9 -9 -8 -8 -7 -7 -6 -6 -6 -5 -5 -4 -3 -2 -2 -1 -------- Run | Yrd Mat Min Mat Min Exi Min Mat Fac DSF Fac Was Fac Fac DSF Fac Res Res Qua Acc Hostile Shots Fired 351 | . 5 41 127 15 . 4 34 . 10 42 . 1 . 5 8 . 4 . 55 Missed 144 | . 3 11 52 8 . 3 13 . 3 27 . . . 1 4 . 3 . 16 Damage Taken 3049 | . 27 449 789 62 . 8 240 . 104 197 . 17 . 73 72 . 22 . 989 Core 718 | . . 186 290 10 . 8 66 . . 36 . . . 10 23 . . . 89 Absorbed by Shields 23 | . . . . . . . . . 23 . . . . . . . . . . Redirected to Shielding 151 | . . . 3 . . . . . . . . . . . 20 . 14 . 114 Regen/Repaired (Parts) 205 | . . . . . . . . . . . . 9 29 . 113 . . . 54 Core Remaining (%) 83 | 100 . 25 . . . 23 88 . 100 . . 95 . 99 98 100 . 100 94 Volleys Fired 156 | . . 11 54 11 . 17 4 . 4 2 . 20 4 1 . . . . 28 Largest 2 | . . 2 2 2 . 1 1 . 1 1 . 2 1 1 . . . . 1 Hottest 120 | . . 40 120 76 . 20 56 . 33 85 . 105 85 85 . . . . 120 Shots Fired 200 | . . 20 85 12 . 17 4 . 4 2 . 23 4 1 . . . . 28 Gun 87 | . . 20 67 . . . . . . . . . . . . . . . . Cannon 61 | . . . . 5 . . 2 . . 2 . 20 3 1 . . . . 28 Launcher 6 | . . . . . . . 2 . 4 . . . . . . . . . . Special 46 | . . . 18 7 . 17 . . . . . 3 1 . . . . . . Kinetic 78 | . . 20 58 . . . . . . . . . . . . . . . . Thermal 100 | . . . 18 7 . 17 . . . 2 . 23 4 1 . . . . 28 Explosive 1 | . . . . . . . . . 1 . . . . . . . . . . Electromagnetic 21 | . . . 9 5 . . 4 . 3 . . . . . . . . . . Robot Hit Streak 9 | . . 2 9 2 . 5 6 . 1 . . 1 . . . . . . 6 Robot Miss Streak 7 | . . 5 7 3 . 1 1 . 2 . . 1 . . . . . . 2 Penetration Max . | . . . . . . . . . . . . . . . . . . . . Secondary Targets 2 | . . . 2 . . . . . . . . . . . . . . . . Max Gunslinging Chain 1 | . . . 1 . . . . . . . . . . . . . . . . Shots Hit Robots 120 | . . 8 43 11 . 13 5 . 1 8 . 4 . . 8 1 1 2 15 Core Hits 58 | . . 6 21 10 . 4 5 . 1 2 . 2 . . 2 . . 1 4 Critical Kills 2 | . . . 1 1 . . . . . . . . . . . . . . . Critical Parts Destroyed . | . . . . . . . . . . . . . . . . . . . . Critical Strikes 4 | . . . 1 1 . 2 . . . . . . . . . . . . . Smash 2 | . . . 1 1 . . . . . . . . . . . . . . . Sever 2 | . . . . . . 2 . . . . . . . . . . . . . Melee Attacks 160 | . . . 5 26 . . 14 . . 33 . 12 2 5 17 6 5 16 19 Impact 45 | . . . 5 26 . . 14 . . . . . . . . . . . . Slashing 113 | . . . . . . . . . . 33 . 12 2 5 16 6 4 16 19 Piercing . | . . . . . . . . . . . . . . . . . . . . Sneak Attacks 29 | . . . 3 5 . . 3 . . 5 . 2 . . 5 1 1 2 2 Combat Hostiles . | . . . . . . . . . . . . . . . . . . . . Follow-up Attacks . | . . . . . . . . . . . . . . . . . . . . Damage Inflicted 4915 | . . 117 737 563 . 138 317 . 65 507 . 214 . . 482 93 . 375 1307 Guns 548 | . . 117 431 . . . . . . . . . . . . . . . . Cannons 431 | . . . . 62 . . 25 . . . . 30 . . . . . . 314 Explosions 199 | . . . 62 . . . 72 . 65 . . . . . . . . . . Melee 3534 | . . . 220 460 . . 220 . . 507 . 184 . . 482 93 . 375 993 Ramming . | . . . . . . . . . . . . . . . . . . . . Kinetic 474 | . . 117 357 . . . . . . . . . . . . . . . . Thermal 609 | . . . 86 41 . 138 . . . . . 30 . . . . . . 314 Explosive 13 | . . . . . . . . . 13 . . . . . . . . . . Electromagnetic 285 | . . . 74 62 . . 97 . 52 . . . . . . . . . . Impact 900 | . . . 220 460 . . 220 . . . . . . . . . . . . Slashing 2634 | . . . . . . . . . . 507 . 184 . . 482 93 . 375 993 Piercing . | . . . . . . . . . . . . . . . . . . . . Highest Corruption 13 | . . . . . . . . . . . . . . . . . . . 13 Average Corruption 11 | . . . . . . . . . . . . . . . . . . . 11 Corruption Purged . | . . . . . . . . . . . . . . . . . . . . Corruption Blocked . | . . . . . . . . . . . . . . . . . . . . Effects 15 | . . . . . . . . . . . . . . . . . . . 15 Message Errors 5 | . . . . . . . . . . . . . . . . . . . 5 Matter Fused 2 | . . . . . . . . . . . . . . . . . . . 2 Heat Flow Errors 2 | . . . . . . . . . . . . . . . . . . . 2 Data Loss (minor) 2 | . . . . . . . . . . . . . . . . . . . 2 Data Loss (major) 2 | . . . . . . . . . . . . . . . . . . . 2 Alerts 1 | . . . . . . . . . . . . . . . . . . . 1 Misdirections 1 | . . . . . . . . . . . . . . . . . . . 1 Overload Shots . | . . . . . . . . . . . . . . . . . . . . Overflow Damage 1115 | . . . 28 139 . . 22 . . 193 . 30 . . 121 53 . 151 378 Projectiles 6 | . . . . . . . . . . . . . . . . . . . 6 Explosions 7 | . . . 7 . . . . . . . . . . . . . . . . Melee 1102 | . . . 21 139 . . 22 . . 193 . 30 . . 121 53 . 151 372 Knockbacks 3 | . . . . 2 . . 1 . . . . . . . . . . . . Impact 3 | . . . . 2 . . 1 . . . . . . . . . . . . Kinetic . | . . . . . . . . . . . . . . . . . . . . Secondary . | . . . . . . . . . . . . . . . . . . . . Self-Inflicted Damage 30 | . . . 30 . . . . . . . . . . . . . . . . Shots 1 | . . . 1 . . . . . . . . . . . . . . . . Rammed . | . . . . . . . . . . . . . . . . . . . . Targets Rammed . | . . . . . . . . . . . . . . . . . . . . Kicked . | . . . . . . . . . . . . . . . . . . . . Crushed . | . . . . . . . . . . . . . . . . . . . . Highest Temperature 486 | . . 15 49 48 . . 21 . . 77 30 187 217 131 99 280 191 . 486 Average Temperature 80 | . . 9 17 22 . . 8 . . 35 14 65 67 71 16 101 85 . 133 Received Heat Transfer 453 | . 15 80 165 9 . . 72 . 55 6 . . . 9 30 . . . 12 Effects 14 | . . . . . . . . . . . . . . . . . . . 14 Shutdowns 1 | . . . . . . . . . . . . . . . . . . . 1 Energy Bleed 1 | . . . . . . . . . . . . . . . . . . . 1 Interference 9 | . . . . . . . . . . . . . . . . . . . 9 Short Circuit 1 | . . . . . . . . . . . . . . . . . . . 1 Damage (major) 2 | . . . . . . . . . . . . . . . . . . . 2 Siege Activations . | . . . . . . . . . . . . . . . . . . . . Robots Corrupted 1 | . . . . . . . 1 . . . . . . . . . . . . Combat Hostiles . | . . . . . . . . . . . . . . . . . . . . Parts Fried 5 | . . . 1 3 . . 1 . . . . . . . . . . . . Impact Corruptions 8 | . . . 2 5 . . 1 . . . . . . . . . . . . Robots Melted . | . . . . . . . . . . . . . . . . . . . . Combat Hostiles . | . . . . . . . . . . . . . . . . . . . . Parts Melted . | . . . . . . . . . . . . . . . . . . . . Heat Transferred 1038 | . . . 150 148 . 481 . . . . . 37 . . . . . . 222 Parts Sabotaged . | . . . . . . . . . . . . . . . . . . . . Parts Stolen . | . . . . . . . . . . . . . . . . . . . . Parts Stripped . | . . . . . . . . . . . . . . . . . . . . Power Chain Reactions 1 | . . . 1 . . . . . . . . . . . . . . . . Alert | -11 -10 -10 -9 -9 -9 -8 -8 -7 -7 -6 -6 -6 -5 -5 -4 -3 -2 -2 -1 ------- Run | Yrd Mat Min Mat Min Exi Min Mat Fac DSF Fac Was Fac Fac DSF Fac Res Res Qua Acc Peak Influence 503 | . 134 127 424 503 . 110 433 196 142 366 129 277 63 17 156 101 78 233 360 Initial 196 | . . 52 49 153 . . 42 196 137 71 114 90 63 9 3 81 56 43 139 Average 175 | . 36 50 245 400 . 20 146 196 134 201 123 189 22 12 69 91 63 156 262 Maximum Alert Level 2 | . . . 2 2 . . 2 . . 1 . 1 . . . . . 1 1 Low Security (%) 62 | 100 100 100 42 5 . 100 77 100 100 52 100 53 100 100 100 100 100 76 27 Level 1 32 | . . . 54 42 . . 18 . . 47 . 46 . . . . . 23 72 Level 2 4 | . . . 3 52 . . 4 . . . . . . . . . . . . Level 3 . | . . . . . . . . . . . . . . . . . . . . Level 4 . | . . . . . . . . . . . . . . . . . . . . Level 5 . | . . . . . . . . . . . . . . . . . . . . High Security . | . . . . . . . . . . . . . . . . . . . . Max Security . | . . . . . . . . . . . . . . . . . . . . Squads Dispatched 21 | . 1 . 2 . . . 1 . 2 2 . 2 . 1 2 . . 1 7 Investigation 6 | . . . 1 . . . . . . . . 1 . . 1 . . . 3 Extermination 5 | . . . . . . . . . . 1 . 1 . . 1 . . . 2 Reinforcement 10 | . 1 . 1 . . . 1 . 2 1 . . . 1 . . . 1 2 Assault . | . . . . . . . . . . . . . . . . . . . . Garrison . | . . . . . . . . . . . . . . . . . . . . Intercept . | . . . . . . . . . . . . . . . . . . . . Searches Triggered . | . . . . . . . . . . . . . . . . . . . . Construction Impeded . | . . . . . . . . . . . . . . . . . . . . Haulers Reinforced . | . . . . . . . . . . . . . . . . . . . . Active Scanning Responses . | . . . . . . . . . . . . . . . . . . . . Cargo Convoy Interrupts . | . . . . . . . . . . . . . . . . . . . . Stealth | -11 -10 -10 -9 -9 -9 -8 -8 -7 -7 -6 -6 -6 -5 -5 -4 -3 -2 -2 -1 --------- Run | Yrd Mat Min Mat Min Exi Min Mat Fac DSF Fac Was Fac Fac DSF Fac Res Res Qua Acc Distress Signals 6 | . . . 2 . . . . . . 1 . . . . . . . 1 2 Communications Jammed . | . . . . . . . . . . . . . . . . . . . . Distress Signals . | . . . . . . . . . . . . . . . . . . . . Times Spotted 217 | . 8 28 41 15 . 6 28 . 11 26 6 4 . 4 10 . 4 3 23 Peak Tracking Total 23 | . 6 23 9 12 . 6 20 . 4 8 6 4 . 4 3 . 4 4 10 Tactical Retreats 34 | . 2 1 7 2 . 2 5 . 1 5 . 2 . . 3 . . 1 3 Traps | -11 -10 -10 -9 -9 -9 -8 -8 -7 -7 -6 -6 -6 -5 -5 -4 -3 -2 -2 -1 ------- Run | Yrd Mat Min Mat Min Exi Min Mat Fac DSF Fac Was Fac Fac DSF Fac Res Res Qua Acc Traps Triggered 6 | . . . . . . . . . 2 2 . . . 1 1 . . . . Indirectly 1 | . . . . . . . . . 1 . . . . . . . . . . Trap Hack Attempts . | . . . . . . . . . . . . . . . . . . . . Triggered . | . . . . . . . . . . . . . . . . . . . . Disarmed . | . . . . . . . . . . . . . . . . . . . . Reprogrammed 14 | . . . . . . . . . . 14 . . . . . . . . . Reused 3 | . . . . . . . . . . 3 . . . . . . . . . Traps Extracted . | . . . . . . . . . . . . . . . . . . . . Installed . | . . . . . . . . . . . . . . . . . . . . Triggered 3 | . . . . . . . . . . 3 . . . . . . . . . Machines | -11 -10 -10 -9 -9 -9 -8 -8 -7 -7 -6 -6 -6 -5 -5 -4 -3 -2 -2 -1 ---------- Run | Yrd Mat Min Mat Min Exi Min Mat Fac DSF Fac Was Fac Fac DSF Fac Res Res Qua Acc Machines Disabled 7 | . . . 1 . . . . . 1 . . . . . . . . 5 . Max in Single Turn 1 | . . . 1 . . . . . 1 . . . . . . . . 1 . Garrison Access 5 | . . . . . . . . . . 2 . 2 . . . 1 . . . Machines Repaired . | . . . . . . . . . . . . . . . . . . . . Machines Dismantled . | . . . . . . . . . . . . . . . . . . . . Machines Sabotaged . | . . . . . . . . . . . . . . . . . . . . Overloaded Fab Kills . | . . . . . . . . . . . . . . . . . . . . Hacking | -11 -10 -10 -9 -9 -9 -8 -8 -7 -7 -6 -6 -6 -5 -5 -4 -3 -2 -2 -1 --------- Run | Yrd Mat Min Mat Min Exi Min Mat Fac DSF Fac Was Fac Fac DSF Fac Res Res Qua Acc Machines Accessed 88 | . 7 . 10 . 4 . 5 1 . 15 . 15 5 . 8 4 2 5 7 Terminals 58 | . 6 . 9 . . . 4 1 . 11 . 7 3 . 5 2 2 3 5 Fabricators 4 | . . . . . . . . . . 1 . 2 . . 1 . . . . Repair Stations 6 | . . . . . . . . . . . . 2 1 . 2 . . 1 . Recycling Units 8 | . 1 . 1 . . . . . . 1 . 2 1 . . 1 . . 1 Scanalyzers 2 | . . . . . . . 1 . . . . . . . . . . 1 . Garrison Access 6 | . . . . . . . . . . 2 . 2 . . . 1 . . 1 Total Hacks 227 | . 21 . 35 . 4 . 14 1 . 44 . 33 11 . 25 9 7 9 14 Successful 140 | . 8 . 21 . 4 . 11 1 . 29 . 22 8 . 14 7 5 5 5 Failed 84 | . 13 . 13 . . . 3 . . 14 . 10 3 . 11 2 2 4 9 Catastrophic 13 | . 1 . 2 . . . 1 . . 1 . 1 . . 2 . . 2 3 Database Lockouts 3 | . . . 1 . . . . . . 1 . 1 . . . . . . . Manual 124 | . 15 . 22 . . . 7 . . 25 . 17 2 . 17 6 7 2 4 Terminals 165 | . 19 . 30 . . . 7 1 . 34 . 20 7 . 19 7 7 4 10 Fabricators 11 | . . . . . . . . . . 5 . 4 . . 2 . . . . Repair Stations 12 | . . . . . . . . . . . . 4 2 . 4 . . 2 . Recycling Units 16 | . 2 . 5 . . . . . . 2 . 3 2 . . 1 . . 1 Scanalyzers 10 | . . . . . . . 7 . . . . . . . . . . 3 . Garrison Access 9 | . . . . . . . . . . 3 . 2 . . . 1 . . 3 Terminal Hacks 54 | . 3 . 7 . 4 . . 1 . 14 . 7 2 . 4 3 3 2 4 Record 11 | . . . . . 4 . . . . 2 . 1 . . 2 . . 1 1 Part Schematic 8 | . 1 . 2 . . . . . . 4 . 1 . . . . . . . Robot Analysis 4 | . 2 . . . . . . . . . . 1 . . . . . 1 . Open Door 3 | . . . . . . . . . . . . . . . . . . . 3 Open DSF 4 | . . . . . . . . 1 . 1 . . 1 . . 1 . . . Level Access Points 3 | . . . . . . . . . . . . 1 . . 1 . 1 . . Branch Access Points 3 | . . . 1 . . . . . . . . . . . . 1 1 . . Terminal Index 6 | . . . 1 . . . . . . 1 . 1 . . 1 1 1 . . Fabricator Index 2 | . . . . . . . . . . 1 . 1 . . . . . . . Unreport Threat 2 | . . . 1 . . . . . . . . . 1 . . . . . . Locate Traps 1 | . . . . . . . . . . . . 1 . . . . . . . Reprogram Traps 3 | . . . . . . . . . . 3 . . . . . . . . . Security Status 1 | . . . . . . . . . . 1 . . . . . . . . . Patrol Status 1 | . . . . . . . . . . 1 . . . . . . . . . Recall Reinforcements 1 | . . . 1 . . . . . . . . . . . . . . . . Zone Layout 1 | . . . 1 . . . . . . . . . . . . . . . . Fabricator Hacks 11 | . . . . . . . . . . 5 . 4 . . 2 . . . . Load Schematic 6 | . . . . . . . . . . 3 . 2 . . 1 . . . . Build 5 | . . . . . . . . . . 2 . 2 . . 1 . . . . Repair Station Hacks 9 | . . . . . . . . . . . . 2 2 . 4 . . 1 . Scan Component 5 | . . . . . . . . . . . . 1 1 . 2 . . 1 . Repair 4 | . . . . . . . . . . . . 1 1 . 2 . . . . Recycling Unit Hacks 13 | . . . 5 . . . . . . 2 . 3 2 . . 1 . . . Recycle Component 1 | . . . 1 . . . . . . . . . . . . . . . . Process 2 | . . . 1 . . . . . . . . 1 . . . . . . . Report Inventory 3 | . . . 1 . . . . . . . . 2 . . . . . . . Retrieve Matter 3 | . . . 1 . . . . . . 1 . . 1 . . . . . . Retrieve Components 4 | . . . 1 . . . . . . 1 . . 1 . . 1 . . . Scanalyzer 9 | . . . . . . . 7 . . . . . . . . . . 2 . Insert Component 5 | . . . . . . . 3 . . . . . . . . . . 2 . Analyze 4 | . . . . . . . 4 . . . . . . . . . . . . Garrison Access Hacks 5 | . . . . . . . . . . 2 . 2 . . . 1 . . . Seal Access 5 | . . . . . . . . . . 2 . 2 . . . 1 . . . Unauthorized Hacks 39 | . 5 . 9 . . . 4 . . 6 . 4 2 . 4 2 2 . 1 Terminals 39 | . 5 . 9 . . . 4 . . 6 . 4 2 . 4 2 2 . 1 Track 11 | . 2 . 5 . . . 1 . . 3 . . . . . . . . . Assimilate 5 | . . . 1 . . . . . . . . 1 . . 2 . . . 1 Botnet 13 | . 2 . 2 . . . 1 . . 2 . 2 1 . 1 1 1 . . Disrupt 1 | . . . . . . . 1 . . . . . . . . . . . . Operators 9 | . 1 . 1 . . . 1 . . 1 . 1 1 . 1 1 1 . . Fabricators . | . . . . . . . . . . . . . . . . . . . . Repair Stations . | . . . . . . . . . . . . . . . . . . . . Recycling Units . | . . . . . . . . . . . . . . . . . . . . Scanalyzers . | . . . . . . . . . . . . . . . . . . . . Garrison Access . | . . . . . . . . . . . . . . . . . . . . Data Cores Recovered . | . . . . . . . . . . . . . . . . . . . . Used . | . . . . . . . . . . . . . . . . . . . . Hacking Detections 69 | . 7 . 9 . . . 5 . . 10 . 12 4 . 7 2 2 4 7 Full Trace Events 6 | . . . 1 . . . . . . . . 1 . . 1 . . . 3 Feedback Events 1 | . . . . . . . . . . . . . . . . . . . 1 Corruption 1 | . . . . . . . . . . . . . . . . . . . 1 Feedback Blocked . | . . . . . . . . . . . . . . . . . . . . Robot Schematics Acquired . | . . . . . . . . . . . . . . . . . . . . Robots Built . | . . . . . . . . . . . . . . . . . . . . Authchips . | . . . . . . . . . . . . . . . . . . . . Time . | . . . . . . . . . . . . . . . . . . . . Total Robot Build Rating . | . . . . . . . . . . . . . . . . . . . . Part Schematics Acquired 10 | . 1 . 1 . . . 3 . . 4 . 1 . . . . . . . Parts Built 10 | . . . . . . . . . . 4 . 4 . . 2 . . . . Authchips 3 | . . . . . . . . . . 2 . 1 . . . . . . . Time 298 | . . . . . . . . . . 94 . 168 . . 36 . . . . Total Part Build Rating 42 | . . . . . . . . . . 20 . 16 . . 6 . . . . Parts Repaired 4 | . . . . . . . . . . . . 1 1 . 2 . . . . Time 122 | . . . . . . . . . . . . 43 16 . 63 . . . . Parts Recycled 1 | . . . 1 . . . . . . . . . . . . . . . . Recycled Matter 38 | . . . 1 . . . . . . . . 37 . . . . . . . Retrieved Matter 1 | . . . 1 . . . . . . . . . . . . . . . . Retrieved Components 7 | . . . 3 . . . . . . 2 . . 2 . . . . . . Parts Scanalyzed 3 | . . . . . . . 3 . . . . . . . . . . . . Part Schematics Acquired 3 | . . . . . . . 3 . . . . . . . . . . . . Parts Damaged . | . . . . . . . . . . . . . . . . . . . . Bothacking | -11 -10 -10 -9 -9 -9 -8 -8 -7 -7 -6 -6 -6 -5 -5 -4 -3 -2 -2 -1 ------------ Run | Yrd Mat Min Mat Min Exi Min Mat Fac DSF Fac Was Fac Fac DSF Fac Res Res Qua Acc Used RIF Installer . | . . . . . . . . . . . . . . . . . . . . Robots Hacked 1 | . . . . . . . . . . . . . . . 1 . . . . Non-combat 1 | . . . . . . . . . . . . . . . 1 . . . . Combat . | . . . . . . . . . . . . . . . . . . . . Robot Hacks Applied 1 | . . . . . . . . . . . . . . . 1 . . . . find_chute 1 | . . . . . . . . . . . . . . . 1 . . . . Relay Couplers Released . | . . . . . . . . . . . . . . . . . . . . Fabnet Peak Effective % . | . . . . . . . . . . . . . . . . . . . . Robots Rewired . | . . . . . . . . . . . . . . . . . . . . Allies Hacked 1 | . . . . . . . . . . 1 . . . . . . . . . Hacks Repelled . | . . . . . . . . . . . . . . . . . . . . Allies | -11 -10 -10 -9 -9 -9 -8 -8 -7 -7 -6 -6 -6 -5 -5 -4 -3 -2 -2 -1 -------- Run | Yrd Mat Min Mat Min Exi Min Mat Fac DSF Fac Was Fac Fac DSF Fac Res Res Qua Acc Total Allies 10 | . . . 1 2 . . . . . 3 . 1 . . 2 . . . 1 Largest Group 3 | . . . 1 2 . . . . . 3 . 1 . . 2 2 2 . 1 Highest-Rated Group 93 | . . . 10 40 . . . . . 93 . 10 . . 36 36 36 . 26 Highest-Rated Ally 31 | . . . 10 31 . . . . . 31 . 10 . . 26 26 26 . 26 Total Orders . | . . . . . . . . . . . . . . . . . . . . Ally Attacks 31 | . . . . 19 . . . . . 12 . . . . . . . . . Total Damage 453 | . . . . 187 . . . . . 266 . . . . . . . . . Kills 5 | . . . . 4 . . . . . 1 . . . . . . . . . Allies Corrupted . | . . . . . . . . . . . . . . . . . . . . Allies Melted . | . . . . . . . . . . . . . . . . . . . . Intel | -11 -10 -10 -9 -9 -9 -8 -8 -7 -7 -6 -6 -6 -5 -5 -4 -3 -2 -2 -1 ------- Run | Yrd Mat Min Mat Min Exi Min Mat Fac DSF Fac Was Fac Fac DSF Fac Res Res Qua Acc Robot Analysis Total 4 | . 2 . . . . . . . . . . 1 . . . . . 1 . Derelict Logs Recovered 1 | . . 1 . . . . . . . . . . . . . . . . . Drone Launches . | . . . . . . . . . . . . . . . . . . . . Drone Recoveries . | . . . . . . . . . . . . . . . . . . . . Exploration | -11 -10 -10 -9 -9 -9 -8 -8 -7 -7 -6 -6 -6 -5 -5 -4 -3 -2 -2 -1 ------------- Run | Yrd Mat Min Mat Min Exi Min Mat Fac DSF Fac Was Fac Fac DSF Fac Res Res Qua Acc Turns Passed 5072 | 44 323 279 718 364 187 224 187 19 107 663 40 455 109 40 317 86 69 205 636 Spaces Moved 9852 | 39 695 526 1027 562 627 545 334 63 127 1182 109 1139 278 58 592 258 154 489 1048 Core 51 | 39 10 . 2 . . . . . . . . . . . . . . . . Treads . | . . . . . . . . . . . . . . . . . . . . Legs . | . . . . . . . . . . . . . . . . . . . . Wheels . | . . . . . . . . . . . . . . . . . . . . Hover . | . . . . . . . . . . . . . . . . . . . . Flight 9801 | . 685 526 1025 562 627 545 334 63 127 1182 109 1139 278 58 592 258 154 489 1048 Fastest Speed 5 | 50 37 37 29 29 29 29 26 27 27 6 14 14 20 6 7 17 7 16 5 Average Speed 26 | 94 39 39 31 29 29 29 26 27 29 25 22 23 20 18 19 17 16 16 17 Slowest Speed 190 | 100 100 40 50 109 29 29 29 27 83 77 24 24 20 190 20 17 17 74 23 Overloaded Moves 121 | . . . . . . . . . 2 51 13 5 . 28 15 . 6 . 1 Propulsion Burnouts 1 | . . . . . . . . . . 1 . . . . . . . . . Robots Hopped 55 | . 4 1 7 1 . 4 8 . 1 11 . . . 1 4 . 6 2 5 Cave-ins Triggered . | . . . . . . . . . . . . . . . . . . . . Exploration Rate (%) 52 | 4 90 92 96 89 93 89 46 2 96 33 74 32 11 89 16 8 7 51 33 Regions Visited 19 Branch Regions 5 Pre-discovered Areas 1 | . . 1 . . . . . . . . . . . . . . . . . Known Exits Taken 8 | . . . 1 . . 1 . 1 . . . 1 1 . 1 . 1 1 . Unknown Exits Taken 7 | 1 1 1 . 1 1 . 1 . . . . . . . . 1 . . . Scrap Searched 4 | . . 1 . 1 . 2 . . . . . . . . . . . . . Spaces Dug 137 | . . . 16 6 . . 6 . . 26 . 27 4 4 4 5 4 8 27 Terrain Destroyed 144 | . . . 20 6 . . 6 . . 26 . 28 4 4 4 5 4 8 29 Melee 80 | . . . 1 6 . . 6 . . 24 . 9 2 4 4 5 4 8 7 Projectile 60 | . . . 15 . . . . . . 2 . 19 2 . . . . . 22 AOE 4 | . . . 4 . . . . . . . . . . . . . . . . Terrain Rammed . | . . . . . . . . . . . . . . . . . . . . Walls Destroyed . | . . . . . . . . . . . . . . . . . . . . Machines Disabled . | . . . . . . . . . . . . . . . . . . . . Actions | -11 -10 -10 -9 -9 -9 -8 -8 -7 -7 -6 -6 -6 -5 -5 -4 -3 -2 -2 -1 --------- Run | Yrd Mat Min Mat Min Exi Min Mat Fac DSF Fac Was Fac Fac DSF Fac Res Res Qua Acc Total 11700 | 44 738 575 1288 698 628 572 398 64 190 1471 124 1268 319 74 761 290 185 579 1434 Wait 1165 | . 24 12 125 85 . 10 25 . 17 228 11 69 22 2 141 23 24 47 300 Move 9727 | 38 687 523 1012 559 626 536 318 62 124 1160 108 1138 277 55 583 257 143 484 1037 Hop 51 | . 3 1 7 1 . 4 7 . 1 11 . . . 1 4 . 4 2 5 Pick Up 94 | 4 10 8 24 . . 2 7 1 4 6 2 4 2 2 5 1 2 5 5 Fast Attach 60 | 2 3 3 11 1 . . . . 9 7 . 4 3 1 1 . 2 8 5 Attach 61 | . 3 5 12 . . . 5 1 4 6 1 1 3 . 2 2 2 1 13 Detach 26 | . . 3 5 . . . 1 . 4 1 . . . . . 1 1 . 10 Swap 87 | . . 4 13 12 1 1 10 . 4 10 . 11 2 5 6 . . 3 5 Drop 95 | . 8 5 20 3 . 2 7 . 5 7 2 7 3 2 2 . 2 13 7 Fire 156 | . . 11 54 11 . 17 4 . 4 2 . 20 4 1 . . . . 28 Melee 160 | . . . 5 26 . . 14 . . 33 . 12 2 5 17 6 5 16 19 Ram . | . . . . . . . . . . . . . . . . . . . . Kick . | . . . . . . . . . . . . . . . . . . . . Crush . | . . . . . . . . . . . . . . . . . . . . Escape Stasis 14 | . . . . . . . . . 14 . . . . . . . . . . Rewire . | . . . . . . . . . . . . . . . . . . . . Trap . | . . . . . . . . . . . . . . . . . . . . Miscellaneous 4 | . . . . . 1 . . . . . . 2 1 . . . . . . Route ------- -11/Scrapyard -10/Materials (discovered 4 exits: *Mat x3 / [*Min]) -10/Mines -9/Materials (discovered 4 exits: *Mat x3 / *Min) -9/Mines (discovered 3 exits: *Mat x2 / *Exi) -9/Exiles (discovered 2 exits: [*Min x2]) -8/Mines (discovered 2 exits: *Mat x2) -8/Materials -7/Factory -7/DSF -6/Factory (discovered 3 exits: *Fac x2 / [*Low]) -6/Waste -6/Factory (discovered 4 exits: *Fac x4) -5/Factory -5/DSF -4/Factory (discovered 4 exits: *Res x4) -3/Research (discovered 5 exits: *Res / Arm / Tes x2 / DSF) -2/Research (discovered 5 exits: Acc x3 / *Qua x2) -2/Quarantine -1/Access To Epsilon Eridani History --------- Turn | Location | Event 17 | -11/Scrapyard | Discovered new exit (range 15) 45 | -11/Scrapyard | Entered Materials 76 | -10/Materials | Discovered new exit (range 3) 177 | -10/Materials | Discovered new exit (range 12) 312 | -10/Materials | Build established: Mutant 350 | -10/Materials | Discovered new exit (range 7) 360 | -10/Materials | Discovered new exit (range 6) 368 | -10/Materials | Entered Mines 369 | -10/Mines | Assembled infested the area 384 | -10/Mines | Core integrity fell below 50% 415 | -10/Mines | Lost 3 parts (1p2n) 432 | -10/Mines | Met a Derelict bent on vengeance 512 | -10/Mines | Discovered new exit (range 5) 529 | -10/Mines | Learned location of 1 exit from Materials 545 | -10/Mines | Learned location of Storage (-8) 647 | -10/Mines | Entered Materials 647 | -9/Materials | Evolved 2 slots: Propulsion x1, Utility x1 648 | -9/Materials | Identified exit to Materials 794 | -9/Materials | Core integrity fell below 50% 813 | -9/Materials | Lost 8 parts (1p3n2u2w) 1029 | -9/Materials | Discovered exit to Materials (range 10) 1214 | -9/Materials | Discovered exit to Materials (range 10) 1248 | -9/Materials | Identified exit to Mines 1248 | -9/Materials | Central database locked down 1263 | -9/Materials | Build established: Sprinter 1313 | -9/Materials | Lost 3 parts (1p2n) 1365 | -9/Materials | Entered Mines 1369 | -9/Mines | Discovered exit to Materials (range 8) 1415 | -9/Mines | A weapon hastily lodged in a ceiling crevice suddenly fell to the ground 1421 | -9/Mines | Discovered exit to Materials (range 12) 1728 | -9/Mines | Deemed a non-threat by the Exiles lab entrance 1728 | -9/Mines | Discovered new exit (range 5) 1729 | -9/Mines | Entered Exiles 1729 | -9/Exiles | Found Exiles lab abandoned 1733 | -9/Exiles | Discovered new exit (range 16) 1771 | -9/Exiles | Discovered new exit (range 12) 1916 | -9/Exiles | Entered Mines 1957 | -8/Mines | Discovered exit to Materials (range 13) 2036 | -8/Mines | Discovered exit to Materials (range 5) 2140 | -8/Mines | Entered Materials 2140 | -8/Materials | Evolved 2 slots: Propulsion x1, Utility x1 2322 | -8/Materials | Discovered new exit (range 16) 2327 | -8/Materials | Entered Factory 2327 | -7/Factory | Evolved 2 slots: Propulsion x1, Utility x1 2332 | -7/Factory | Identified exit to DSF 2346 | -7/Factory | Entered DSF 2347 | -7/DSF | Joined Warlord attack on 0b10 via DSF 2366 | -7/DSF | Additional patrols routed to DSF 2366 | -7/DSF | Discovered new exit (range 18) 2413 | -7/DSF | Lost 3 parts (3n) 2415 | -7/DSF | Lost 4 allies 2453 | -7/DSF | Entered Factory 2453 | -6/Factory | Evolved 2 slots: Utility x2 2675 | -6/Factory | Discovered new exit (range 21) 2776 | -6/Factory | Spotted B-75 Beast 2792 | -6/Factory | Build established: Hacker-Sprinter 2806 | -6/Factory | Allied Derelicts emerged from ambush trap array 2829 | -6/Factory | Discovered new exit (range 22) 2838 | -6/Factory | Central database locked down 2866 | -6/Factory | Fabricated Imp. Surge Thruster? 3000 | -6/Factory | Discovered new exit (range 6) 3009 | -6/Factory | Fabricated Imp. Surge Thruster? 3045 | -6/Factory | Lost 3 parts (1p1n1w) 3116 | -6/Factory | Manually triggered Chute Trap 3116 | -6/Factory | Sucked down chute 3116 | -6/Factory | Entered Waste 3126 | -6/Waste | Spotted C-40 Crusher 3126 | -6/Waste | Spotted C-40 Crusher 3129 | -6/Waste | Spotted C-40 Crusher 3130 | -6/Waste | Spotted C-40 Crusher 3130 | -6/Waste | Spotted C-40 Crusher 3134 | -6/Waste | Discovered new exit (range 22) 3134 | -6/Waste | Spotted C-40 Crusher 3156 | -6/Waste | Entered Factory 3283 | -6/Factory | Identified exit to Factory 3380 | -6/Factory | Central database locked down 3481 | -6/Factory | Fabricated Imp. Propulsion Shielding? 3486 | -6/Factory | Fabricated Imp. Surge Thruster? 3562 | -6/Factory | Repaired Broken Lrn. Sensor Array? 3611 | -6/Factory | Entered another Factory area 3611 | -5/Factory | Evolved 2 slots: Propulsion x1, Utility x1 3673 | -5/Factory | Spotted B-75 Beast 3706 | -5/Factory | Repaired Plasma Cutter 3719 | -5/Factory | Identified exit to DSF 3720 | -5/Factory | Entered DSF 3733 | -5/DSF | Additional patrols routed to DSF 3758 | -5/DSF | Discovered new exit (range 8) 3760 | -5/DSF | Entered Factory 3760 | -4/Factory | Evolved 2 slots: Utility x2 3914 | -4/Factory | Fabricated Imp. Propulsion Shielding? 3994 | -4/Factory | Discovered new exit (range 13) 3998 | -4/Factory | Identified exit to Research 4064 | -4/Factory | Repaired Imp. Surge Thruster 4072 | -4/Factory | Repaired Surge Thruster 4077 | -4/Factory | Entered Research 4077 | -3/Research | Accompanied by 2 allies 4077 | -3/Research | Evolved 2 slots: Power x1, Propulsion x1 4083 | -3/Research | Identified exit to Armory 4083 | -3/Research | Identified exit to Testing 4089 | -3/Research | Identified exit to DSF 4154 | -3/Research | Discovered new exit (range 9) 4163 | -3/Research | Entered another Research area 4163 | -2/Research | Accompanied by 2 allies 4163 | -2/Research | Evolved 2 slots: Propulsion x1, Utility x1 4176 | -2/Research | Identified exit to Quarantine 4176 | -2/Research | Identified exit to Access 4232 | -2/Research | Entered Quarantine 4237 | -2/Quarantine | Found Alien Slashing Weapon 4237 | -2/Quarantine | Identified Sigix Broadsword 4270 | -2/Quarantine | Found Alien Artifact 4291 | -2/Quarantine | Found Alien Reactor 4291 | -2/Quarantine | Identified Matter Drive 4392 | -2/Quarantine | Found Alien Impact Weapon 4392 | -2/Quarantine | Identified Core Stripper 4397 | -2/Quarantine | Discovered exit to Access (range 5) 4419 | -2/Quarantine | Found Alien Artifact 4419 | -2/Quarantine | Identified Terrabomb 4419 | -2/Quarantine | Used Terrabomb 4435 | -2/Quarantine | Found Terrabomb 4437 | -2/Quarantine | Entered Access 4437 | -1/Access | Evolved 2 slots: Utility x1, Weapon x1 4438 | -1/Access | Identified Subatomic Replicator 4438 | -1/Access | Used Subatomic Replicator to replicate Imp. Surge Thruster 4750 | -1/Access | System corruption reached 10% 4777 | -1/Access | Lost 3 parts (2u1w) 5063 | -1/Access | Spotted B-99 Colossus 5071 | -1/Access | Discovered new exit (range 6) 5072 | -1/Access | Identified exit to Surface 5073 | *** | Escaped! Last Messages --------------- Investigation squad. 05027_ Administrator 10a reveals location of Alarm Trap. 05031_ Administrator 10a reveals location of Stasis Trap. 05032_ System corrupted: Component data lost. 05032_ Administrator 10a reveals location of Stasis Trap. 05034_ Administrator 10a reveals location of hidden door. 05056_ X:58S4PL/DS#M%X,C/4VHNLU/7:BZ%PGLD 05057_ W-44 Eye sends out distress signal. 05071_ Connecting with Terminal... >>Open(Door) Sealed Barrier opened. 05071_ ALERT: Suspicious activity at Terminal A001. Dispatching Investigation squad. 05071_ The Access Shell folds into the floor. 05071_ EXIT=FOUND [Achievement: Party Time] 05072_ EXIT=IDENTIFIED: SURFACE [Achievement: Epsilon Run] [Achievement: True Flier] [Achievement: Overachiever] Map ----- +----------------------------------------------------+ | ???????????????????????????? # ################## | | ???????????????????????????? # ##### ######### | | ????????????????????????????## | | ????????????????????????????## | | ????????????????????????????######### ######### | | ???????????????????????############### ########## | | ???????????????????????###########?### ###??????? | | ??????????????????????## ?? # ########## | | ??????????????????????## ? ? # ########## | | ??????????????????????## "" # # # | | ??????????????????????## """ # #= # | | ??????????????????????## R" # # " # | | ??????????????????????## * """ / # """ # | | ??????????????????????## "" # # """ # | | ??????????????????????##[ ==] ? # # " # | | ??????????????????????## ==] ??? # + # | | ??????????????????????## ==] ????? # # # | | ??????????????????????## ??????? # # # | | ??????????????????????######## ##???## ######+### | | ???????????????????################### ###### ### | | ???????????????????########### ####### ##??## ### | | ???????????????????"" ##??## ### | | ????????????????????" ##??## | | ????????????????????" ##??## | | ????????????????????" ##??## | | ????????????????????" "@ ##??## | | ????????????????????" "" ##??## | | ????????????????????" k ##??## | | ????????????????????" ##??## | | ????????????????????" """ """k ##?### | | ???????????????????"" """T""" ##?### | | ???????????????????########### ####### ##?## | | ???????????????????################### ## "" | | ????????????????????????????#####???## ##""" | | ???????????????????????????????????? # ##"T | | ???????????????????????????????????? # ##""" | | ??????????????????????????????????????w ## "" | | ?????????????????????????????????????? ##### | | ?????????????????????????????????????? ##### "" | | ?????????????????????????????????????? ##?## "F | | ?????????????????????????????????????? ##?## "" | | ?????????????????????????????????????? ##?## ### | | ??????????????????????????????????????? ???## ### | | ???????????????????????????????????????????## ##? | | ???????????????????????????????????????????## ##? | | ??????????????????????????????????????????? ##? | | ??????????????????????????????????????????? ##? | | ???????????????????????????????????????????######? | | ??????????????????????????????????????????? ###? | | ?????????????????????????????????????????????????? | +----------------------------------------------------+ Best States ------------- Heat Dissipation 52 Energy Generation 32 Energy Capacity 900 Matter Stores 300 Matter Capacity 300 Sight Range 22 Robot Scan Range 18 Terrain Scan Range 20 Terrain Scan Density 10 ECM Strength 1 Cloak Strength 3 Resistance: TH 20 Power Shielding 33 Propulsion Shielding 66 Evasion (%) 79 Targeting Accuracy 11 Target Analysis 8 Offensive Hacking 40 Authchip Count 3 Item Schematics ----------------- Utility Shielding | -10/Materials | Hacked Med. Storage Unit | -9/Materials | Hacked Cesium-ion Thruster | -8/Materials | Scanalyzed Hacking Suite | -8/Materials | Scanalyzed Plasma Cutter | -8/Materials | Scanalyzed Imp. VTOL Module | -6/Factory | Hacked Imp. Surge Thruster | -6/Factory | Hacked Cloaking Device | -6/Factory | Hacked Imp. System Shield | -6/Factory | Hacked Imp. Propulsion Shielding | -6/Factory | Hacked Robot Schematics ------------------ None Fabricated ------------ Imp. Surge Thruster | x2 | -6/Factory | Authchip Imp. Surge Thruster | x2 | -6/Factory | Authchip Imp. Propulsion Shielding | x2 | -6/Factory Imp. Surge Thruster | x2 | -6/Factory | Authchip Imp. Propulsion Shielding | x2 | -4/Factory Alien Tech Used ----------------- Sigix Broadsword Matter Drive Core Stripper Terrabomb Subatomic Replicator Achievements -------------- Epsilon Run I Survived The Infestation Overachiever Party Time Slippery One Speed Demon Supersonic True Flier Wheee! Challenges ------------ None Game ------ Seed HeavyEnhancedLaser Manual? 0 Play Time 08:26:12 Cumulative 60.2 hours Start 2024.05.04 @ 17:18:41 End 2024.05.05 @ 17:15:28 Sessions 3 Manual Loads 0 Difficulty Rogue Special Mode None Game No. 10 Rogue 7 Adventurer 3 Explorer 0 Win Type 0 Total 1 Types 1/0/0/0/0/0/0/0/0 Lore% 32 Gallery% 58 Achievement% 51 Wizard Run 0 Options --------- Layout 0 ASCII 0 Keyboard 0 Movement Numpad Keybinds 0 Fullscreen 1 Font 18/SmallcapsGlow Map View 76x50 Zoom Use 0% Tactical HUD 1 Map Filters NONE Filters NONE Steam 1 RUN: 2a11c691-eee8-4c1a-9030-8b60fd9970eb